fUSD/lending_fUSD_20260622
["ID","MTS","AMOUNT","RATE_DAILY","PERIOD"]
[426015858,1782118243000,-500.0,0.00027397,2]
[426015859,1782118243000,-502.97240295,0.00027397,2]
[426015865,1782118243000,-500.0,0.00027397,2]
[426015867,1782118243000,-258.52018545,0.00027397,2]
[426015860,1782118243000,-500.0,0.00027397,2]
[426015864,1782118243000,-500.0,0.00027397,2]
[426015863,1782118243000,-503.4410674,0.00027397,2]
[426015862,1782118243000,-500.0,0.00027397,2]
[426015866,1782118243000,-500.0,0.00027397,2]
[426015861,1782118243000,-504.5834604,0.00027397,2]
[426015869,1782118243000,-584.00070807,0.00027397,2]
[426015871,1782118243000,-500.0,0.00027397,2]
[426015868,1782118243000,-500.0,0.00027397,2]
[426015870,1782118243000,-610.24017393,0.00027397,2]
[426015816,1782118243000,-1000.0,0.00027396,2]
[426015872,1782118243000,-500.0,0.00027397,2]
[426015874,1782118243000,-500.0,0.00027397,2]
[426015875,1782118243000,-504.61041492,0.00027397,2]
[426015849,1782118243000,-500.0,0.00027397,2]
[426015854,1782118243000,-502.64847864,0.00027397,2]
[426015873,1782118243000,-500.0,0.00027397,2]
[426015846,1782118243000,-39661.016941,0.00027397,2]
[426015818,1782118243000,-783.82906622,0.00027396,2]
[426015823,1782118243000,-537.90213611,0.00027396,2]
[426015825,1782118243000,-537.90213611,0.00027396,2]
[426015826,1782118243000,-537.90213611,0.00027396,2]
[426015827,1782118243000,-537.90213611,0.00027396,2]
[426015824,1782118243000,-537.90213611,0.00027396,2]
[426015831,1782118243000,-506.55966874,0.00027396,20]
[426015832,1782118243000,-500.0,0.00027396,20]
[426015829,1782118243000,-537.90213611,0.00027396,2]
[426015833,1782118243000,-283.16000466,0.00027396,20]
[426015834,1782118243000,-202.349935,0.00027396,2]
[426015830,1782118243000,-537.9021361,0.00027396,2]
[426015828,1782118243000,-537.90213611,0.00027396,2]
[426015838,1782118243000,-1000.0,0.00027397,2]
[426015847,1782118243000,-500.0,0.00027397,2]
[426015835,1782118243000,-3145.3893723,0.00027397,2]
[426015844,1782118243000,-500.0,0.00027397,2]
[426015845,1782118243000,-500.59589596,0.00027397,2]
[426015843,1782118243000,-500.0,0.00027397,2]
[426015842,1782118243000,-500.0,0.00027397,2]
[426015848,1782118243000,-504.80243469,0.00027397,2]
[426015839,1782118243000,-151.809928,0.00027397,2]
[426015840,1782118243000,-196.798054,0.00027397,7]
[426015837,1782118243000,-160.0,0.00027397,2]
[426015836,1782118243000,-8586.76334058,0.00027397,10]
[426015841,1782118243000,-246.10990296,0.00027397,7]
[426015904,1782118244000,-500.0,0.00027397,2]
[426015907,1782118244000,-500.0,0.00027397,2]
[426015908,1782118244000,-500.0,0.00027397,2]
[426015910,1782118244000,-500.0,0.00027397,2]
[426015906,1782118244000,-500.0,0.00027397,2]
[426015901,1782118244000,-502.94882112,0.00027397,2]
[426015905,1782118244000,-500.0,0.00027397,2]
[426015903,1782118244000,-500.0,0.00027397,2]
[426015909,1782118244000,-500.0,0.00027397,2]
[426015912,1782118244000,-500.0,0.00027397,2]
[426015918,1782118244000,-500.0,0.00027397,2]
[426015925,1782118244000,-501.23530459,0.00027397,2]
[426015914,1782118244000,-501.55651107,0.00027397,2]
[426015913,1782118244000,-500.0,0.00027397,2]
[426015924,1782118244000,-500.0,0.00027397,2]
[426015915,1782118244000,-500.0,0.00027397,2]
[426015917,1782118244000,-500.0,0.00027397,2]
[426015923,1782118244000,-500.0,0.00027397,2]
[426015919,1782118244000,-500.0,0.00027397,2]
[426015916,1782118244000,-500.0,0.00027397,2]
[426015922,1782118244000,-500.0,0.00027397,2]
[426015902,1782118244000,-500.0,0.00027397,2]
[426015911,1782118244000,-500.0,0.00027397,2]
[426015900,1782118244000,-500.0,0.00027397,2]
[426015886,1782118244000,-500.0,0.00027397,2]
[426015898,1782118244000,-500.0,0.00027397,2]
[426015920,1782118244000,-500.0,0.00027397,2]
[426015876,1782118244000,-500.0,0.00027397,2]
[426015877,1782118244000,-500.0,0.00027397,2]
[426015878,1782118244000,-502.29779997,0.00027397,2]
[426015879,1782118244000,-500.0,0.00027397,2]
[426015881,1782118244000,-575.68217748,0.00027397,2]
[426015883,1782118244000,-500.0,0.00027397,2]
[426015887,1782118244000,-500.0,0.00027397,2]
[426015880,1782118244000,-500.0,0.00027397,2]
[426015889,1782118244000,-500.0,0.00027397,2]
[426015899,1782118244000,-500.0,0.00027397,2]
[426015884,1782118244000,-501.30646369,0.00027397,2]
[426015888,1782118244000,-500.0,0.00027397,2]
[426015885,1782118244000,-500.0,0.00027397,2]
[426015890,1782118244000,-500.0,0.00027397,2]
[426015891,1782118244000,-500.0,0.00027397,2]
[426015897,1782118244000,-500.0,0.00027397,2]
[426015892,1782118244000,-500.0,0.00027397,2]
[426015893,1782118244000,-500.0,0.00027397,2]
[426015894,1782118244000,-500.0,0.00027397,2]
[426015895,1782118244000,-500.0,0.00027397,2]
[426015896,1782118244000,-500.0,0.00027397,2]
[426015882,1782118244000,-500.0,0.00027397,2]
[426015921,1782118244000,-500.0,0.00027397,2]
[426015931,1782118244000,-500.48160575,0.00027397,2]
[426015964,1782118244000,-500.0,0.00027397,2]
[426015956,1782118244000,-387.20516566,0.00027397,2]
[426015957,1782118244000,-500.0,0.00027397,2]
[426015958,1782118244000,-1305.26,0.00027397,2]
[426015961,1782118244000,-806.18,0.00027397,2]
[426015959,1782118244000,-500.0,0.00027397,2]
[426015970,1782118244000,-500.0,0.00027397,2]
[426015960,1782118244000,-880.48,0.00027397,2]
[426015963,1782118244000,-977.47,0.00027397,2]
[426015967,1782118244000,-926.72,0.00027397,2]
[426015962,1782118244000,-670.71,0.00027397,2]
[426015954,1782118244000,-190.0002499,0.00027397,2]
[426015969,1782118244000,-500.0,0.00027397,2]
[426015965,1782118244000,-500.0,0.00027397,2]
[426015968,1782118244000,-763.17,0.00027397,2]
[426015972,1782118244000,-500.0,0.00027397,2]
[426015971,1782118244000,-518.92,0.00027397,2]
[426015974,1782118244000,-582.93,0.00027397,2]
[426015977,1782118244000,-500.0,0.00027397,2]
[426015973,1782118244000,-500.0,0.00027397,2]
[426015976,1782118244000,-500.0,0.00027397,2]
[426015975,1782118244000,-500.0,0.00027397,2]
[426015926,1782118244000,-1001.58,0.00027397,2]
[426015966,1782118244000,-500.0,0.00027397,2]
[426015953,1782118244000,-500.0,0.00027397,2]
[426015955,1782118244000,-500.0,0.00027397,2]
[426015948,1782118244000,-500.0,0.00027397,2]
[426015928,1782118244000,-500.0,0.00027397,2]
[426015937,1782118244000,-500.0,0.00027397,2]
[426015934,1782118244000,-501.73266631,0.00027397,2]
[426015927,1782118244000,-500.0,0.00027397,2]
[426015936,1782118244000,-506.71,0.00027397,2]
[426015929,1782118244000,-500.0,0.00027397,2]
[426015932,1782118244000,-500.0,0.00027397,2]
[426015951,1782118244000,-607.9,0.00027397,2]
[426015933,1782118244000,-500.0,0.00027397,2]
[426015930,1782118244000,-500.0,0.00027397,2]
[426015939,1782118244000,-500.0,0.00027397,2]
[426015940,1782118244000,-500.0,0.00027397,2]
[426015935,1782118244000,-500.0,0.00027397,2]
[426015949,1782118244000,-1262.85,0.00027397,2]
[426015938,1782118244000,-500.0,0.00027397,2]
[426015942,1782118244000,-582.63,0.00027397,2]
[426015946,1782118244000,-500.0,0.00027397,2]
[426015945,1782118244000,-500.0,0.00027397,2]
[426015947,1782118244000,-500.0,0.00027397,2]
[426015943,1782118244000,-500.0,0.00027397,2]
[426015944,1782118244000,-500.0,0.00027397,2]
[426015952,1782118244000,-500.0,0.00027397,2]
[426015950,1782118244000,-500.0,0.00027397,2]
[426015941,1782118244000,-500.0,0.00027397,2]
[426016015,1782118245000,-509.38372195,0.00027397,2]
[426016016,1782118245000,-500.0,0.00027397,2]
[426016009,1782118245000,-508.64459398,0.00027397,2]
[426016013,1782118245000,-500.0,0.00027397,2]
[426016011,1782118245000,-500.0,0.00027397,2]
[426016007,1782118245000,-537.14421952,0.00027397,2]
[426016010,1782118245000,-500.0,0.00027397,2]
[426016012,1782118245000,-491.97783583,0.00027397,2]
[426016006,1782118245000,-500.0,0.00027397,2]
[426016017,1782118245000,-502.50936016,0.00027397,2]
[426016014,1782118245000,-501.52710669,0.00027397,2]
[426016019,1782118245000,-500.0,0.00027397,2]
[426016028,1782118245000,-500.0,0.00027397,2]
[426016022,1782118245000,-500.0,0.00027397,2]
[426016020,1782118245000,-500.0,0.00027397,2]
[426016023,1782118245000,-500.0,0.00027397,2]
[426016024,1782118245000,-500.0,0.00027397,2]
[426016021,1782118245000,-500.0,0.00027397,2]
[426016025,1782118245000,-1036.4,0.00027397,2]
[426016026,1782118245000,-500.0,0.00027397,2]
[426016035,1782118245000,-500.0,0.00027397,2]
[426016037,1782118245000,-500.0,0.00027397,2]
[426016036,1782118245000,-500.0,0.00027397,2]
[426016027,1782118245000,-500.0,0.00027397,2]
[426016008,1782118245000,-500.0,0.00027397,2]
[426016018,1782118245000,-509.06132689,0.00027397,2]
[426016005,1782118245000,-500.0,0.00027397,2]
[426015978,1782118245000,-623.15,0.00027397,2]
[426015998,1782118245000,-200.76888038,0.00027397,2]
[426015981,1782118245000,-500.0,0.00027397,2]
[426015979,1782118245000,-500.0,0.00027397,2]
[426016032,1782118245000,-500.0,0.00027397,2]
[426015980,1782118245000,-504.62184733,0.00027397,2]
[426015984,1782118245000,-500.0,0.00027397,2]
[426015983,1782118245000,-500.0,0.00027397,2]
[426015982,1782118245000,-506.13710691,0.00027397,2]
[426015991,1782118245000,-500.0,0.00027397,2]
[426015990,1782118245000,-500.0,0.00027397,2]
[426015987,1782118245000,-500.0,0.00027397,2]
[426015992,1782118245000,-500.0,0.00027397,2]
[426015985,1782118245000,-1029.91,0.00027397,2]
[426015988,1782118245000,-500.0,0.00027397,2]
[426015989,1782118245000,-500.0,0.00027397,2]
[426015986,1782118245000,-500.0,0.00027397,2]
[426015993,1782118245000,-500.0,0.00027397,2]
[426016002,1782118245000,-500.0,0.00027397,2]
[426016003,1782118245000,-500.0,0.00027397,2]
[426015994,1782118245000,-624.1112876,0.00027397,2]
[426015995,1782118245000,-500.0,0.00027397,2]
[426016001,1782118245000,-500.0,0.00027397,2]
[426015996,1782118245000,-500.0,0.00027397,2]
[426015997,1782118245000,-500.0,0.00027397,2]
[426015999,1782118245000,-500.0,0.00027397,2]
[426016000,1782118245000,-620.35177554,0.00027397,2]
[426016004,1782118245000,-894.46,0.00027397,2]
[426016033,1782118245000,-500.0,0.00027397,2]
[426016044,1782118245000,-539.27268608,0.00027397,2]
[426016029,1782118245000,-500.0,0.00027397,2]
[426016065,1782118245000,-500.0,0.00027397,2]
[426016067,1782118245000,-235.10050302,0.00027397,2]
[426016070,1782118245000,-500.0,0.00027397,2]
[426016071,1782118245000,-500.0,0.00027397,2]
[426016068,1782118245000,-500.0,0.00027397,2]
[426016069,1782118245000,-500.0,0.00027397,2]
[426016072,1782118245000,-791.7,0.00027397,2]
[426016073,1782118245000,-500.0,0.00027397,2]
[426016078,1782118245000,-500.0,0.00027397,2]
[426016031,1782118245000,-1419.64,0.00027397,2]
[426016079,1782118245000,-176.19135043,0.00027397,2]
[426016075,1782118245000,-500.0,0.00027397,2]
[426016074,1782118245000,-500.0,0.00027397,2]
[426016077,1782118245000,-563.24,0.00027397,2]
[426016083,1782118245000,-500.0,0.00027397,2]
[426016080,1782118245000,-500.0,0.00027397,2]
[426016082,1782118245000,-500.0,0.00027397,2]
[426016081,1782118245000,-500.0,0.00027397,2]
[426016085,1782118245000,-924.56,0.00027397,2]
[426016084,1782118245000,-500.0,0.00027397,2]
[426016086,1782118245000,-500.0,0.00027397,2]
[426016087,1782118245000,-1345.02,0.00027397,2]
[426016088,1782118245000,-500.0,0.00027397,2]
[426016089,1782118245000,-500.0,0.00027397,2]
[426016090,1782118245000,-500.0,0.00027397,2]
[426016066,1782118245000,-500.0,0.00027397,2]
[426016064,1782118245000,-500.0,0.00027397,2]
[426016076,1782118245000,-500.0,0.00027397,2]
[426016063,1782118245000,-500.0,0.00027397,2]
[426016034,1782118245000,-683.61,0.00027397,2]
[426016062,1782118245000,-500.0,0.00027397,2]
[426016030,1782118245000,-500.0,0.00027397,2]
[426016039,1782118245000,-617.04588161,0.00027397,2]
[426016050,1782118245000,-500.0,0.00027397,2]
[426016038,1782118245000,-636.72,0.00027397,2]
[426016040,1782118245000,-528.37030426,0.00027397,2]
[426016041,1782118245000,-500.0,0.00027397,2]
[426016042,1782118245000,-500.0,0.00027397,2]
[426016045,1782118245000,-503.14479539,0.00027397,2]
[426016043,1782118245000,-500.0,0.00027397,2]
[426016046,1782118245000,-422.05140896,0.00027397,2]
[426016049,1782118245000,-500.0,0.00027397,2]
[426016048,1782118245000,-500.0,0.00027397,2]
[426016058,1782118245000,-500.0,0.00027397,2]
[426016047,1782118245000,-747.71,0.00027397,2]
[426016061,1782118245000,-500.0,0.00027397,2]
[426016056,1782118245000,-500.0,0.00027397,2]
[426016052,1782118245000,-475.8032974,0.00027397,2]
[426016057,1782118245000,-500.0,0.00027397,2]
[426016059,1782118245000,-241.66493235,0.00027397,2]
[426016060,1782118245000,-885.95,0.00027397,2]
[426016053,1782118245000,-500.0,0.00027397,2]
[426016054,1782118245000,-500.0,0.00027397,2]
[426016051,1782118245000,-500.0,0.00027397,2]
[426016055,1782118245000,-500.0,0.00027397,2]
[426016126,1782118246000,-500.0,0.00027397,2]
[426016125,1782118246000,-500.0,0.00027397,2]
[426016123,1782118246000,-500.0,0.00027397,2]
[426016121,1782118246000,-500.0,0.00027397,2]
[426016129,1782118246000,-500.0,0.00027397,2]
[426016124,1782118246000,-595.08,0.00027397,2]
[426016128,1782118246000,-500.0,0.00027397,2]
[426016120,1782118246000,-536.72490144,0.00027397,2]
[426016122,1782118246000,-500.0,0.00027397,2]
[426016131,1782118246000,-1021.59,0.00027397,2]
[426016127,1782118246000,-504.49520957,0.00027397,2]
[426016139,1782118246000,-363.75371237,0.00027397,2]
[426016143,1782118246000,-502.5070789,0.00027397,2]
[426016133,1782118246000,-500.0,0.00027397,2]
[426016135,1782118246000,-500.0,0.00027397,2]
[426016132,1782118246000,-711.99,0.00027397,2]
[426016130,1782118246000,-501.76148626,0.00027397,2]
[426016134,1782118246000,-581.6860851,0.00027397,2]
[426016138,1782118246000,-503.95241299,0.00027397,2]
[426016136,1782118246000,-500.0,0.00027397,2]
[426016137,1782118246000,-518.18831793,0.00027397,2]
[426016141,1782118246000,-501.54096319,0.00027397,2]
[426016142,1782118246000,-500.0,0.00027397,2]
[426016119,1782118246000,-500.0,0.00027397,2]
[426016140,1782118246000,-500.0,0.00027397,2]
[426016116,1782118246000,-500.0,0.00027397,2]
[426016144,1782118246000,-500.0,0.00027397,2]
[426016117,1782118246000,-517.09722655,0.00027397,2]
[426016096,1782118246000,-503.07034607,0.00027397,2]
[426016095,1782118246000,-503.32066165,0.00027397,2]
[426016092,1782118246000,-500.0,0.00027397,2]
[426016091,1782118246000,-500.0,0.00027397,2]
[426016094,1782118246000,-500.0,0.00027397,2]
[426016093,1782118246000,-500.0,0.00027397,2]
[426016098,1782118246000,-500.0,0.00027397,2]
[426016099,1782118246000,-500.0,0.00027397,2]
[426016102,1782118246000,-1020.09,0.00027397,2]
[426016097,1782118246000,-628.49,0.00027397,2]
[426016101,1782118246000,-500.0,0.00027397,2]
[426016100,1782118246000,-500.0,0.00027397,2]
[426016104,1782118246000,-500.0,0.00027397,2]
[426016103,1782118246000,-500.0,0.00027397,2]
[426016105,1782118246000,-500.0,0.00027397,2]
[426016107,1782118246000,-506.5193185,0.00027397,2]
[426016106,1782118246000,-539.94,0.00027397,2]
[426016109,1782118246000,-500.0,0.00027397,2]
[426016108,1782118246000,-500.0,0.00027397,2]
[426016110,1782118246000,-500.0,0.00027397,2]
[426016114,1782118246000,-500.0,0.00027397,2]
[426016112,1782118246000,-500.0,0.00027397,2]
[426016115,1782118246000,-623.17683847,0.00027397,2]
[426016113,1782118246000,-500.0,0.00027397,2]
[426016111,1782118246000,-500.0,0.00027397,2]
[426016118,1782118246000,-503.42556179,0.00027397,2]
[426016150,1782118246000,-500.0,0.00027397,2]
[426016149,1782118246000,-500.0,0.00027397,2]
[426016146,1782118246000,-504.25282784,0.00027397,2]
[426016186,1782118246000,-818.02,0.00027397,2]
[426016178,1782118246000,-500.0,0.00027397,2]
[426016176,1782118246000,-500.0,0.00027397,2]
[426016179,1782118246000,-500.0,0.00027397,2]
[426016180,1782118246000,-500.0,0.00027397,2]
[426016181,1782118246000,-502.3735855,0.00027397,2]
[426016183,1782118246000,-500.0,0.00027397,2]
[426016182,1782118246000,-500.0,0.00027397,2]
[426016184,1782118246000,-500.0,0.00027397,2]
[426016187,1782118246000,-500.0,0.00027397,2]
[426016193,1782118246000,-500.0,0.00027397,2]
[426016185,1782118246000,-500.0,0.00027397,2]
[426016192,1782118246000,-500.0,0.00027397,2]
[426016195,1782118246000,-500.0,0.00027397,2]
[426016191,1782118246000,-508.19606798,0.00027397,2]
[426016188,1782118246000,-500.0,0.00027397,2]
[426016196,1782118246000,-500.0,0.00027397,2]
[426016197,1782118246000,-500.0,0.00027397,2]
[426016190,1782118246000,-500.0,0.00027397,2]
[426016199,1782118246000,-500.0,0.00027397,2]
[426016198,1782118246000,-500.0,0.00027397,2]
[426016200,1782118246000,-500.0,0.00027397,2]
[426016201,1782118246000,-500.0,0.00027397,2]
[426016145,1782118246000,-500.0,0.00027397,2]
[426016194,1782118246000,-500.0,0.00027397,2]
[426016177,1782118246000,-500.0,0.00027397,2]
[426016202,1782118246000,-1005.54,0.00027397,2]
[426016174,1782118246000,-500.0,0.00027397,2]
[426016148,1782118246000,-500.0,0.00027397,2]
[426016147,1782118246000,-502.2,0.00027397,2]
[426016151,1782118246000,-500.0,0.00027397,2]
[426016162,1782118246000,-503.54854396,0.00027397,2]
[426016152,1782118246000,-500.0,0.00027397,2]
[426016155,1782118246000,-154.58324662,0.00027397,2]
[426016154,1782118246000,-500.0,0.00027397,2]
[426016172,1782118246000,-500.0,0.00027397,2]
[426016156,1782118246000,-912.19,0.00027397,2]
[426016157,1782118246000,-500.0,0.00027397,2]
[426016158,1782118246000,-500.0,0.00027397,2]
[426016159,1782118246000,-500.0,0.00027397,2]
[426016153,1782118246000,-500.0,0.00027397,2]
[426016160,1782118246000,-500.0,0.00027397,2]
[426016171,1782118246000,-500.0,0.00027397,2]
[426016161,1782118246000,-500.0,0.00027397,2]
[426016175,1782118246000,-500.0,0.00027397,2]
[426016168,1782118246000,-500.0,0.00027397,2]
[426016169,1782118246000,-515.7442721,0.00027397,2]
[426016170,1782118246000,-500.0,0.00027397,2]
[426016167,1782118246000,-500.0,0.00027397,2]
[426016173,1782118246000,-500.0,0.00027397,2]
[426016166,1782118246000,-500.0,0.00027397,2]
[426016165,1782118246000,-500.0,0.00027397,2]
[426016163,1782118246000,-500.0,0.00027397,2]
[426016164,1782118246000,-500.0,0.00027397,2]
[426016237,1782118247000,-500.0,0.00027397,2]
[426016236,1782118247000,-500.0,0.00027397,2]
[426016239,1782118247000,-169.261806,0.00027397,2]
[426016235,1782118247000,-500.0,0.00027397,2]
[426016228,1782118247000,-1000.0,0.00027397,2]
[426016240,1782118247000,-500.0,0.00027397,2]
[426016234,1782118247000,-500.0,0.00027397,2]
[426016233,1782118247000,-500.0,0.00027397,2]
[426016230,1782118247000,-500.0,0.00027397,2]
[426016238,1782118247000,-151.0,0.00027397,2]
[426016243,1782118247000,-779.48,0.00027397,2]
[426016256,1782118247000,-500.0,0.00027397,2]
[426016245,1782118247000,-500.0,0.00027397,2]
[426016248,1782118247000,-500.0,0.00027397,2]
[426016242,1782118247000,-500.0,0.00027397,2]
[426016244,1782118247000,-500.0,0.00027397,2]
[426016246,1782118247000,-500.0,0.00027397,2]
[426016247,1782118247000,-788.76,0.00027397,2]
[426016249,1782118247000,-500.0,0.00027397,2]
[426016251,1782118247000,-500.0,0.00027397,2]
[426016252,1782118247000,-500.0,0.00027397,2]
[426016259,1782118247000,-500.0,0.00027397,2]
[426016231,1782118247000,-500.0,0.00027397,2]
[426016241,1782118247000,-500.0,0.00027397,2]
[426016229,1782118247000,-498.44195603,0.00027397,2]
[426016217,1782118247000,-510.35578504,0.00027397,2]
[426016227,1782118247000,-505.05979699,0.00027397,2]
[426016258,1782118247000,-500.0,0.00027397,2]
[426016209,1782118247000,-151.0,0.00027397,2]
[426016203,1782118247000,-500.0,0.00027397,2]
[426016204,1782118247000,-500.0,0.00027397,2]
[426016205,1782118247000,-500.0,0.00027397,2]
[426016208,1782118247000,-517.36,0.00027397,2]
[426016206,1782118247000,-500.0,0.00027397,2]
[426016207,1782118247000,-151.0,0.00027397,2]
[426016210,1782118247000,-500.0,0.00027397,2]
[426016211,1782118247000,-500.0,0.00027397,2]
[426016212,1782118247000,-500.0,0.00027397,2]
[426016232,1782118247000,-500.0,0.00027397,2]
[426016221,1782118247000,-500.0,0.00027397,2]
[426016219,1782118247000,-500.0,0.00027397,2]
[426016218,1782118247000,-500.0,0.00027397,2]
[426016215,1782118247000,-677.87,0.00027397,2]
[426016214,1782118247000,-500.0,0.00027397,2]
[426016213,1782118247000,-500.0,0.00027397,2]
[426016220,1782118247000,-503.28189101,0.00027397,2]
[426016223,1782118247000,-500.0,0.00027397,2]
[426016222,1782118247000,-500.0,0.00027397,2]
[426016224,1782118247000,-500.0,0.00027397,2]
[426016226,1782118247000,-500.0,0.00027397,2]
[426016225,1782118247000,-500.0,0.00027397,2]
[426016216,1782118247000,-500.0,0.00027397,2]
[426016261,1782118247000,-1060.0,0.00027397,2]
[426016254,1782118247000,-1212.61,0.00027397,2]
[426016255,1782118247000,-700.0,0.00027397,2]
[426016285,1782118247000,-500.0,0.00027397,2]
[426016288,1782118247000,-500.0,0.00027397,2]
[426016287,1782118247000,-500.0,0.00027397,2]
[426016293,1782118247000,-500.0,0.00027397,2]
[426016289,1782118247000,-500.0,0.00027397,2]
[426016290,1782118247000,-502.44613289,0.00027397,2]
[426016295,1782118247000,-720.67,0.00027397,2]
[426016292,1782118247000,-579.91,0.00027397,2]
[426016291,1782118247000,-500.0,0.00027397,2]
[426016294,1782118247000,-500.0,0.00027397,2]
[426016299,1782118247000,-508.19,0.00027397,2]
[426016302,1782118247000,-852.64,0.00027397,2]
[426016300,1782118247000,-500.0,0.00027397,2]
[426016306,1782118247000,-500.0,0.00027397,2]
[426016301,1782118247000,-500.0,0.00027397,2]
[426016298,1782118247000,-500.0,0.00027397,2]
[426016303,1782118247000,-500.0,0.00027397,2]
[426016304,1782118247000,-765.97,0.00027397,2]
[426016305,1782118247000,-500.0,0.00027397,2]
[426016307,1782118247000,-584.8830889,0.00027397,2]
[426016310,1782118247000,-500.0,0.00027397,2]
[426016311,1782118247000,-500.0,0.00027397,2]
[426016309,1782118247000,-500.0,0.00027397,2]
[426016253,1782118247000,-500.0,0.00027397,2]
[426016308,1782118247000,-500.0,0.00027397,2]
[426016296,1782118247000,-500.0,0.00027397,2]
[426016286,1782118247000,-500.0,0.00027397,2]
[426016297,1782118247000,-500.0,0.00027397,2]
[426016284,1782118247000,-500.0,0.00027397,2]
[426016280,1782118247000,-529.45530909,0.00027397,2]
[426016250,1782118247000,-500.0,0.00027397,2]
[426016260,1782118247000,-514.19988793,0.00027397,2]
[426016263,1782118247000,-500.0,0.00027397,2]
[426016273,1782118247000,-511.13141,0.00027397,2]
[426016265,1782118247000,-500.0,0.00027397,2]
[426016268,1782118247000,-159.878422,0.00027397,2]
[426016264,1782118247000,-1643.99,0.00027397,2]
[426016267,1782118247000,-3877.04,0.00027397,2]
[426016262,1782118247000,-500.0,0.00027397,2]
[426016266,1782118247000,-500.0,0.00027397,2]
[426016272,1782118247000,-502.67207465,0.00027397,2]
[426016257,1782118247000,-501.94680871,0.00027397,2]
[426016271,1782118247000,-500.0,0.00027397,2]
[426016270,1782118247000,-500.0,0.00027397,2]
[426016274,1782118247000,-525.16,0.00027397,2]
[426016278,1782118247000,-4305.18,0.00027397,2]
[426016282,1782118247000,-500.0,0.00027397,2]
[426016275,1782118247000,-500.0,0.00027397,2]
[426016283,1782118247000,-500.0,0.00027397,2]
[426016277,1782118247000,-500.0,0.00027397,2]
[426016276,1782118247000,-538.25378054,0.00027397,2]
[426016281,1782118247000,-500.0,0.00027397,2]
[426016279,1782118247000,-500.0,0.00027397,2]
[426016269,1782118247000,-500.0,0.00027397,2]
[426016353,1782118248000,-500.0,0.00027397,2]
[426016350,1782118248000,-570.87,0.00027397,2]
[426016352,1782118248000,-500.68777025,0.00027397,2]
[426016351,1782118248000,-500.0,0.00027397,2]
[426016344,1782118248000,-500.0,0.00027397,2]
[426016347,1782118248000,-500.0,0.00027397,2]
[426016345,1782118248000,-507.88500158,0.00027397,2]
[426016343,1782118248000,-500.0,0.00027397,2]
[426016349,1782118248000,-500.0,0.00027397,2]
[426016337,1782118248000,-500.0,0.00027397,2]
[426016348,1782118248000,-1020.45,0.00027397,2]
[426016346,1782118248000,-500.0,0.00027397,2]
[426016361,1782118248000,-321.63024573,0.00027397,2]
[426016365,1782118248000,-500.0,0.00027397,2]
[426016355,1782118248000,-500.0,0.00027397,2]
[426016359,1782118248000,-1083.19,0.00027397,2]
[426016358,1782118248000,-501.18887105,0.00027397,2]